fUST/lending_fUST_20250616
["ID","MTS","AMOUNT","RATE_DAILY","PERIOD"]
[366111808,1750069839611,-460.0,0.00021917,4]
[366111809,1750069839620,-460.0,0.00021917,4]
[366111810,1750069839630,-460.0,0.00021917,4]
[366111811,1750069839640,-240.0,0.00021917,4]
[366111812,1750069839651,-549.05542173,0.00021917,4]
[366111813,1750069839661,-460.0,0.00021917,4]
[366111814,1750069839671,-460.0,0.00021917,4]
[366111815,1750069839681,-362.65888534,0.00021917,4]
[366111816,1750069839690,-460.0,0.00021917,4]
[366111817,1750069839700,-460.0,0.00021917,2]
[366111818,1750069839710,-460.0,0.00021917,4]
[366111819,1750069839719,-440.0,0.00021917,4]
[366111820,1750069839728,-220.1252963,0.00021917,4]
[366111821,1750069839739,-190.0,0.00021917,4]
[366111822,1750069839749,-460.0,0.00021917,4]
[366111823,1750069839759,-460.0,0.00021917,4]
[366111824,1750069839769,-151.56838024,0.00021917,4]
[366111825,1750069839779,-460.0,0.00021917,4]
[366111826,1750069839788,-462.6392093,0.00021917,4]
[366111827,1750069839798,-436.58317014,0.00021917,4]
[366111828,1750069839807,-460.0,0.00021917,4]
[366111829,1750069839817,-460.0,0.00021917,4]
[366111830,1750069839826,-414.36142621,0.00021917,4]
[366111831,1750069839836,-460.0,0.00021917,4]
[366111832,1750069839846,-460.0,0.00021917,4]
[366111833,1750069839856,-440.0,0.00021917,4]
[366111834,1750069839865,-460.0,0.00021917,4]
[366111835,1750069839875,-336.45260583,0.00021917,4]
[366111836,1750069839885,-460.0,0.00021917,4]
[366111837,1750069839894,-460.0,0.00021917,4]
[366111838,1750069839904,-460.0,0.00021917,4]
[366111839,1750069839915,-460.0,0.00021917,4]
[366111840,1750069839925,-460.0,0.00021917,4]
[366111841,1750069839935,-460.0,0.00021917,4]
[366111842,1750069839944,-460.0,0.00021917,4]
[366111843,1750069839954,-460.0,0.00021917,4]
[366111844,1750069839963,-460.0,0.00021917,4]
[366111845,1750069839973,-460.0,0.00021917,4]
[366111846,1750069839983,-460.0,0.00021917,4]
[366111847,1750069839993,-460.0,0.00021917,4]
[366111848,1750069840002,-460.0,0.00021917,4]
[366111849,1750069840012,-460.0,0.00021917,4]
[366111850,1750069840022,-460.0,0.00021917,4]
[366111851,1750069840035,-460.0,0.00021917,4]
[366111852,1750069840045,-554.15,0.00021917,2]
[366111853,1750069840055,-460.0,0.00021917,4]
[366111854,1750069840064,-460.0,0.00021917,4]
[366111855,1750069840183,-342.73492699,0.00021917,4]
[366111856,1750069840194,-214.55659888,0.00021917,4]
[366111857,1750069840204,-181.04052881,0.00021917,4]
[366111858,1750069840215,-423.48181343,0.00021917,4]
[366111859,1750069840224,-460.0,0.00021917,4]
[366111860,1750069840234,-500.0,0.00021917,4]
[366111861,1750069840244,-500.0,0.00021917,4]
[366111862,1750069840254,-370.0,0.00021917,4]
[366111863,1750069840264,-500.0,0.00021917,4]
[366111864,1750069840274,-500.0,0.00021917,4]
[366111865,1750069840284,-500.0,0.00021917,4]
[366111866,1750069840293,-500.0,0.00021917,4]
[366111867,1750069840303,-500.0,0.00021917,4]
[366111868,1750069840313,-312.56,0.00021917,4]
[366111869,1750069840324,-223.40042319,0.00021917,4]
[366111870,1750069840333,-566.20253903,0.00021917,4]
[366111871,1750069840343,-460.0,0.00021917,4]
[366111872,1750069840352,-466.08580655,0.00021917,4]
[366111873,1750069840362,-462.08034479,0.00021917,4]
[366111874,1750069840372,-470.33344409,0.00021917,4]
[366111875,1750069840382,-460.0,0.00021917,4]
[366111876,1750069840391,-460.0,0.00021917,4]
[366111877,1750069840402,-460.0,0.00021917,4]
[366111878,1750069840412,-460.0,0.00021917,4]
[366111879,1750069840423,-460.0,0.00021917,4]
[366111880,1750069840433,-460.0,0.00021917,4]
[366111881,1750069840443,-240.23198759,0.00021917,4]
[366111882,1750069840453,-460.0,0.00021917,4]
[366111883,1750069840463,-432.11194564,0.00021917,4]
[366111884,1750069840472,-460.0,0.00021917,4]
[366111885,1750069840483,-260.56839692,0.00021917,4]
[366111886,1750069840493,-460.0,0.00021917,4]
[366111887,1750069840503,-460.0,0.00021917,4]
[366111888,1750069840512,-460.0,0.00021917,4]
[366111889,1750069840522,-460.0,0.00021917,4]
[366111890,1750069840532,-467.07916544,0.00021917,4]
[366111891,1750069840542,-434.71279783,0.00021917,4]
[366111892,1750069840552,-460.0,0.00021917,4]
[366111893,1750069840561,-460.0,0.00021917,4]
[366111894,1750069840571,-460.0,0.00021917,4]
[366111895,1750069840580,-505.6622556,0.00021917,4]
[366111897,1750069840591,-541.02,0.00021917,4]
[366111898,1750069840602,-460.0,0.00021917,4]
[366111899,1750069840612,-467.26932066,0.00021917,4]
[366111900,1750069840621,-460.0,0.00021917,4]
[366111901,1750069840632,-437.04968891,0.00021917,4]
[366111902,1750069840641,-460.0,0.00021917,4]
[366111904,1750069840651,-460.0,0.00021917,4]
[366111905,1750069840660,-444.52970269,0.00021917,4]
[366111906,1750069840669,-460.0,0.00021917,4]
[366111907,1750069840679,-460.0,0.00021917,4]
[366111908,1750069840687,-460.0,0.00021917,4]
[366111909,1750069840697,-460.0,0.00021917,4]
[366111910,1750069840707,-431.08777953,0.00021917,4]
[366111911,1750069840716,-460.0,0.00021917,4]
[366111912,1750069840725,-460.0,0.00021917,4]
[366111913,1750069840734,-460.0,0.00021917,4]
[366111914,1750069840744,-460.0,0.00021917,4]
[366111915,1750069840754,-438.11674702,0.00021917,4]
[366111916,1750069840763,-432.18923227,0.00021917,4]
[366111917,1750069840773,-460.0,0.00021917,4]
[366111918,1750069840783,-460.0,0.00021917,4]
[366111919,1750069840794,-460.0,0.00021917,4]
[366111920,1750069840803,-1550.75,0.00021917,4]
[366111921,1750069840813,-460.0,0.00021917,4]
[366111922,1750069840824,-460.0,0.00021917,4]
[366111923,1750069840834,-460.0,0.00021917,4]
[366111924,1750069840844,-460.0,0.00021917,4]
[366111926,1750069840855,-460.0,0.00021917,4]
[366111928,1750069840864,-386.60299656,0.00021917,4]
[366111930,1750069840873,-460.0,0.00021917,4]
[366111932,1750069840882,-460.0,0.00021917,4]
[366111934,1750069840892,-460.0,0.00021917,4]
[366111936,1750069840901,-500.0,0.00021917,4]
[366111938,1750069840911,-460.0,0.00021917,4]
[366111940,1750069840921,-500.0,0.00021917,4]
[366111942,1750069840930,-500.0,0.00021917,4]
[366111944,1750069840939,-500.0,0.00021917,4]
[366111946,1750069840948,-500.0,0.00021917,4]
[366111948,1750069840957,-500.0,0.00021917,4]
[366111950,1750069840966,-460.0,0.00021917,4]
[366111952,1750069840976,-500.0,0.00021917,4]
[366111954,1750069840985,-500.0,0.00021917,4]
[366111956,1750069840994,-460.0,0.00021917,4]
[366111958,1750069841003,-535.51112876,0.00021917,4]
[366111960,1750069841013,-431.83971641,0.00021917,4]
[366111962,1750069841022,-460.0,0.00021917,4]
[366111964,1750069841035,-410.0,0.00021917,4]
[366111966,1750069841044,-460.0,0.00021917,4]
[366111968,1750069841054,-460.0,0.00021917,4]
[366111970,1750069841063,-348.10021219,0.00021917,4]
[366111972,1750069841075,-465.49622247,0.00021917,4]
[366111974,1750069841084,-460.0,0.00021917,4]
[366111976,1750069841093,-1002.27,0.00021917,4]
[366111977,1750069841103,-460.0,0.00021917,4]
[366111979,1750069841113,-440.0,0.00021917,4]
[366111981,1750069841123,-435.94995984,0.00021917,4]
[366111983,1750069841132,-460.0,0.00021917,4]
[366111985,1750069841142,-460.0,0.00021917,4]
[366111987,1750069841151,-460.0,0.00021917,4]
[366111990,1750069841160,-466.98698619,0.00021917,4]
[366111991,1750069841169,-460.0,0.00021917,4]
[366111993,1750069841179,-460.0,0.00021917,4]
[366111995,1750069841188,-185.24086146,0.00021917,4]
[366111997,1750069841199,-460.0,0.00021917,4]
[366111999,1750069841208,-1392.3,0.00021917,4]
[366112001,1750069841217,-460.0,0.00021917,4]
[366112003,1750069841227,-460.0,0.00021917,4]
[366112005,1750069841236,-460.0,0.00021917,4]
[366112007,1750069841247,-460.0,0.00021917,4]
[366112009,1750069841256,-460.0,0.00021917,4]
[366112011,1750069841265,-460.0,0.00021917,4]
[366112013,1750069841275,-1648.77,0.00021917,4]
[366112015,1750069841284,-460.0,0.00021917,4]
[366112017,1750069841294,-460.0,0.00021917,4]
[366112019,1750069841303,-504.31189285,0.00021917,4]
[366112022,1750069841313,-451.91125862,0.00021917,4]
[366112024,1750069841323,-430.0,0.00021917,4]
[366112026,1750069841332,-1163.05,0.00021917,4]
[366112028,1750069841341,-460.0,0.00021917,4]
[366112030,1750069841351,-460.0,0.00021917,4]
[366112032,1750069841360,-460.0,0.00021917,4]
[366112034,1750069841370,-460.0,0.00021917,4]
[366112035,1750069841379,-431.03795017,0.00021917,4]
[366112037,1750069841390,-460.0,0.00021917,4]
[366112039,1750069841399,-460.0,0.00021917,4]
[366112041,1750069841408,-460.0,0.00021917,4]
[366112043,1750069841418,-573.38,0.00021917,4]
[366112045,1750069841427,-460.0,0.00021917,4]
[366112047,1750069841436,-460.0,0.00021917,4]
[366112049,1750069841446,-460.0,0.00021917,4]
[366112051,1750069841455,-418.12603671,0.00021917,4]
[366112053,1750069841465,-460.0,0.00021917,4]
[366112055,1750069841477,-460.0,0.00021917,4]
[366112057,1750069841486,-685.17,0.00021917,4]
[366112059,1750069841495,-476.55874631,0.00021917,4]
[366112061,1750069841504,-398.77224526,0.00021917,4]
[366112063,1750069841513,-460.0,0.00021917,4]
[366112065,1750069841522,-430.0,0.00021917,4]
[366112067,1750069841532,-460.0,0.00021917,4]
[366112069,1750069841541,-460.0,0.00021917,4]
[366112071,1750069841550,-460.0,0.00021917,4]
[366112073,1750069841559,-460.0,0.00021917,4]
[366112075,1750069841569,-460.0,0.00021917,4]
[366112077,1750069841578,-460.0,0.00021917,4]
[366112079,1750069841587,-460.0,0.00021917,4]
[366112081,1750069841597,-332.28131824,0.00021917,4]
[366112083,1750069841606,-460.0,0.00021917,4]
[366112085,1750069841615,-694.47,0.00021917,4]
[366112087,1750069841624,-280.0,0.00021917,4]
[366112089,1750069841634,-460.0,0.00021917,4]
[366112091,1750069841643,-460.0,0.00021917,4]
[366112093,1750069841653,-410.0,0.00021917,4]
[366112095,1750069841662,-408.36725475,0.00021917,4]
[366112097,1750069841671,-460.0,0.00021917,4]
[366112098,1750069841680,-239.04150137,0.00021917,4]
[366112101,1750069841690,-460.0,0.00021917,4]
[366112103,1750069841701,-460.0,0.00021917,4]
[366112105,1750069841711,-460.0,0.00021917,4]
[366112107,1750069841721,-460.0,0.00021917,4]
[366112109,1750069841730,-442.532581,0.00021917,4]
[366112110,1750069841740,-461.95810043,0.00021917,4]
[366112112,1750069841749,-460.0,0.00021917,4]
[366112114,1750069841759,-460.0,0.00021917,4]
[366112116,1750069841768,-460.0,0.00021917,4]
[366112118,1750069841778,-460.0,0.00021917,4]
[366112120,1750069841787,-185.05043185,0.00021917,4]
[366112122,1750069841796,-468.13320924,0.00021917,4]
[366112124,1750069841806,-460.0,0.00021917,4]
[366112126,1750069841815,-460.0,0.00021917,4]
[366112128,1750069841826,-460.0,0.00021917,4]
[366112130,1750069841835,-464.05036246,0.00021917,4]
[366112132,1750069841845,-460.0,0.00021917,4]
[366112135,1750069841855,-460.0,0.00021917,4]
[366112136,1750069841865,-464.3987596,0.00021917,4]
[366112138,1750069841875,-460.0,0.00021917,4]
[366112140,1750069841884,-506.61,0.00021917,4]
[366112142,1750069841893,-430.0,0.00021917,4]
[366112144,1750069841903,-460.0,0.00021917,4]
[366112146,1750069841912,-460.0,0.00021917,4]
[366112148,1750069841921,-484.83,0.00021917,4]
[366112150,1750069841932,-578.65,0.00021917,4]
[366112152,1750069841942,-460.0,0.00021917,4]
[366112154,1750069841951,-460.0,0.00021917,4]
[366112156,1750069841961,-460.0,0.00021917,4]
[366112158,1750069841969,-460.0,0.00021917,4]
[366112160,1750069841978,-460.0,0.00021917,4]
[366112162,1750069841987,-460.0,0.00021917,4]
[366112164,1750069841997,-269.80600474,0.00021917,4]
[366112166,1750069842006,-460.0,0.00021917,4]
[366112168,1750069842016,-460.0,0.00021917,4]
[366112170,1750069842025,-460.0,0.00021917,4]
[366112172,1750069842038,-460.0,0.00021917,4]
[366112174,1750069842047,-460.0,0.00021917,4]
[366112176,1750069842057,-460.0,0.00021917,4]
[366112178,1750069842066,-227.59448699,0.00021917,4]
[366112179,1750069842076,-460.0,0.00021917,4]
[366112181,1750069842086,-460.0,0.00021917,4]
[366112183,1750069842096,-460.0,0.00021917,4]
[366112185,1750069842106,-639.45,0.00021917,4]
[366112187,1750069842116,-460.0,0.00021917,4]
[366112189,1750069842125,-438.57017707,0.00021917,4]
[366112191,1750069842135,-420.88571535,0.00021917,4]
[366112193,1750069842144,-460.0,0.00021917,4]
[366112195,1750069842154,-460.0,0.00021917,4]
[366112197,1750069842164,-460.0,0.00021917,4]
[366112199,1750069842173,-460.0,0.00021917,4]
[366112201,1750069842185,-460.0,0.00021917,4]
[366112203,1750069842194,-460.0,0.00021917,4]
[366112205,1750069842204,-460.0,0.00021917,4]
[366112207,1750069842214,-422.35595763,0.00021917,4]
[366112209,1750069842223,-460.0,0.00021917,4]
[366112211,1750069842232,-460.0,0.00021917,4]
[366112213,1750069842241,-460.0,0.00021917,4]
[366112215,1750069842250,-460.0,0.00021917,4]
[366112216,1750069842260,-1660.77,0.00021917,4]
[366112218,1750069842270,-420.0,0.00021917,4]
[366112220,1750069842279,-460.0,0.00021917,4]
[366112222,1750069842289,-460.0,0.00021917,4]
[366112234,1750069842387,-460.0,0.00021917,4]
[366112237,1750069842406,-460.0,0.00021917,4]
[366112239,1750069842417,-460.0,0.00021917,4]
[366112241,1750069842426,-460.0,0.00021917,4]
[366112242,1750069842435,-460.0,0.00021917,4]
[366112244,1750069842445,-460.0,0.00021917,4]
[366112246,1750069842454,-460.0,0.00021917,4]
[366112248,1750069842464,-1163.95,0.00021917,4]
[366112250,1750069842473,-460.0,0.00021917,4]
[366112252,1750069842483,-460.0,0.00021917,4]
[366112254,1750069842493,-480.7731394,0.00021917,4]
[366112256,1750069842502,-460.0,0.00021917,4]
[366112258,1750069842512,-460.0,0.00021917,4]
[366112260,1750069842521,-460.0,0.00021917,4]
[366112262,1750069842531,-460.0,0.00021917,4]
[366112264,1750069842541,-529.34,0.00021917,4]
[366112266,1750069842551,-248.34,0.00021917,4]
[366112268,1750069842560,-460.0,0.00021917,4]
[366112270,1750069842570,-601.74,0.00021917,4]
[366112272,1750069842579,-460.0,0.00021917,4]
[366112274,1750069842588,-460.0,0.00021917,4]
[366112276,1750069842597,-460.0,0.00021917,4]
[366112278,1750069842607,-460.0,0.00021917,4]
[366112280,1750069842617,-460.0,0.00021917,4]
[366112282,1750069842626,-460.0,0.00021917,4]
[366112284,1750069842636,-353.49443933,0.00021917,4]
[366112286,1750069842645,-460.0,0.00021917,4]
[366112288,1750069842654,-460.0,0.00021917,4]
[366112290,1750069842664,-410.0,0.00021917,4]
[366112292,1750069842673,-460.0,0.00021917,4]
[366112294,1750069842682,-460.0,0.00021917,4]
[366112296,1750069842691,-460.0,0.00021917,4]
[366112298,1750069842700,-460.0,0.00021917,4]
[366112300,1750069842709,-460.0,0.00021917,4]
[366112302,1750069842719,-1116.87,0.00021917,4]
[366112304,1750069842728,-460.0,0.00021917,4]
[366112306,1750069842740,-460.0,0.00021917,4]
[366112308,1750069842749,-460.0,0.00021917,4]
[366112310,1750069842759,-440.0,0.00021917,4]
[366112312,1750069842768,-460.0,0.00021917,4]
[366112314,1750069842778,-460.0,0.00021917,4]
[366112316,1750069842787,-460.0,0.00021917,4]
[366112318,1750069842799,-460.0,0.00021917,4]
[366112320,1750069842809,-460.0,0.00021917,4]
[366112322,1750069842818,-469.33883381,0.00021917,4]
[366112324,1750069842827,-460.0,0.00021917,4]
[366112326,1750069842837,-460.0,0.00021917,4]
[366112328,1750069842847,-460.0,0.00021917,4]
[366112330,1750069842856,-338.589068,0.00021917,2]
[366112332,1750069842866,-460.0,0.00021917,4]
[366112334,1750069842877,-460.0,0.00021917,4]
[366112336,1750069842886,-460.0,0.00021917,4]
[366112338,1750069842895,-460.0,0.00021917,4]
[366112340,1750069842904,-557.88264246,0.00021918,2]
[366112343,1750069842914,-500.0,0.00021973,2]
[366112346,1750069842924,-500.0,0.00021973,2]
[366112348,1750069842936,-509.79302906,0.00021973,2]
[366112350,1750069842946,-500.0,0.00021973,2]
[366112353,1750069842956,-500.0,0.00021973,2]
[366112355,1750069842966,-160.36119306,0.00021973,2]
[366112358,1750069842976,-323.57026451,0.00021973,2]
[366112361,1750069842986,-500.0,0.00021973,2]
[366112364,1750069842996,-500.0,0.00021973,2]
[366112368,1750069843006,-500.0,0.00021973,2]
[366112369,1750069843016,-500.0,0.00021973,2]
[366112371,1750069843025,-500.34784896,0.00021973,2]
[366112373,1750069843038,-519.2447875,0.00021973,2]
[366112375,1750069843047,-500.0,0.00021973,2]
[366112377,1750069843057,-504.14328316,0.00021973,2]
[366112380,1750069843067,-500.0,0.00021973,2]
[366112381,1750069843077,-500.0,0.00021973,2]
[366112383,1750069843086,-507.06452997,0.00021973,2]
[366112386,1750069843097,-243.94881655,0.00021973,2]
[366112387,1750069843107,-224.80073573,0.00021973,2]
[366112389,1750069843117,-500.0,0.00021973,2]
[366112391,1750069843126,-411.73137713,0.00021973,2]
[366112393,1750069843136,-500.0,0.00021973,2]
[366112395,1750069843146,-500.0,0.00021973,2]
[366112397,1750069843155,-174.0,0.00022,2]
[366112399,1750069843164,-169.111676,0.00022032,7]
[366112401,1750069843174,-151.0,0.00022032,7]
[366112403,1750069843184,-151.0,0.00022032,7]
[366112405,1750069843194,-647.78928677,0.00022038,6]
[366112407,1750069843203,-168.0,0.00022054,2]
[366112409,1750069843212,-4717.87099878,0.00022091,2]
[366112411,1750069843222,-500.0,0.0002219,4]
[366112413,1750069843232,-500.0,0.0002219,4]
[366112415,1750069843242,-252.47696192,0.0002219,4]
[366112417,1750069843251,-151.0,0.00022191,7]
[366112419,1750069843262,-151.0,0.00022191,7]
[366112421,1750069843274,-235.31253788,0.00022191,4]
[366112424,1750069843284,-460.0,0.00022191,4]
[366112426,1750069843294,-151.0,0.00022191,7]
[366112427,1750069843304,-440.0,0.00022191,4]
[366112430,1750069843314,-460.88612342,0.00022191,4]
[366112432,1750069843324,-151.0,0.00022191,7]
[366112434,1750069843334,-151.0,0.00022191,7]
[366112435,1750069843344,-460.0,0.00022191,4]
[366112438,1750069843354,-528.09607589,0.00022191,4]
[366112440,1750069843365,-539.76110086,0.00022191,4]
[366112442,1750069843377,-460.0,0.00022191,4]
[366112444,1750069843387,-447.97478659,0.00022191,4]
[366112446,1750069843396,-460.0,0.00022191,4]
[366112448,1750069843407,-460.0,0.00022191,4]
[366112450,1750069843417,-460.0,0.00022191,4]
[366112452,1750069843426,-460.0,0.00022191,4]
[366112454,1750069843435,-432.39868925,0.00022191,4]
[366112455,1750069843444,-460.0,0.00022191,4]
[366112457,1750069843454,-460.0,0.00022191,4]
[366112459,1750069843463,-460.0,0.00022191,4]
[366112461,1750069843473,-460.0,0.00022191,2]
[366112463,1750069843483,-440.0,0.00022191,4]
[366112465,1750069843493,-460.0,0.00022191,4]
[366112467,1750069843504,-460.0,0.00022191,4]
[366112470,1750069843513,-460.0,0.00022191,4]
[366112472,1750069843523,-347.15891941,0.00022191,4]
[366112473,1750069843533,-460.0,0.00022191,4]
[366112475,1750069843542,-460.0,0.00022191,4]
[366112477,1750069843551,-460.0,0.00022191,4]
[366112479,1750069843561,-460.0,0.00022191,4]
[366112481,1750069843571,-460.0,0.00022191,4]
[366112483,1750069843581,-460.0,0.00022191,4]
[366112485,1750069843590,-460.0,0.00022191,4]
[366112487,1750069843600,-410.0,0.00022191,4]
[366112489,1750069843609,-363.16113298,0.00022191,4]
[366112491,1750069843619,-460.0,0.00022191,4]
[366112493,1750069843628,-440.0,0.00022191,4]
[366112495,1750069843637,-420.0,0.00022191,4]
[366112498,1750069843647,-460.0,0.00022191,4]
[366112500,1750069843657,-554.15,0.00022191,2]
[366112502,1750069843667,-343.36540105,0.00022191,4]
[366112504,1750069843677,-251.36306871,0.00022191,4]
[366112506,1750069843688,-460.0,0.00022191,4]
[366112509,1750069843698,-460.0,0.00022191,4]
[366112512,1750069843707,-412.33724672,0.00022191,4]
[366112515,1750069843718,-460.0,0.00022191,4]
[366112518,1750069843728,-366.28179356,0.00022191,4]
[366112521,1750069843737,-469.86600201,0.00022191,4]
[366112524,1750069843748,-460.0,0.00022191,4]
[366112526,1750069843758,-460.0,0.00022191,4]
[366112528,1750069843768,-460.0,0.00022191,4]
[366112530,1750069843777,-178.94622705,0.00022191,4]
[366112532,1750069843787,-347.25318973,0.00022191,4]
[366112534,1750069843797,-221.27918365,0.00022191,4]
[366112536,1750069843808,-251.42308909,0.00022191,4]
[366112538,1750069843818,-492.77548399,0.00022191,4]
[366112540,1750069843829,-541.02,0.00022191,4]
[366112542,1750069843839,-460.0,0.00022191,4]
[366112545,1750069843851,-466.81445133,0.00022191,4]
[366112547,1750069843861,-460.0,0.00022191,4]
[366112549,1750069843871,-460.0,0.00022191,4]
[366112551,1750069843881,-460.0,0.00022191,4]
[366112553,1750069843891,-460.0,0.00022191,4]
[366112555,1750069843901,-460.0,0.00022191,4]
[366112557,1750069843911,-452.26964847,0.00022191,4]
[366112559,1750069843920,-460.0,0.00022191,4]
[366112561,1750069843930,-460.0,0.00022191,4]
[366112563,1750069843941,-486.22016368,0.00022191,4]
[366112565,1750069843951,-460.0,0.00022191,4]
[366112566,1750069843960,-460.0,0.00022191,4]
[366112568,1750069843970,-603.69933632,0.00022191,4]
[366112570,1750069843980,-1550.75,0.00022191,4]
[366112572,1750069843989,-460.0,0.00022191,4]
[366112574,1750069844000,-447.30142086,0.00022191,4]
[366112577,1750069844010,-460.0,0.00022191,4]
[366112578,1750069844019,-460.0,0.00022191,4]
[366112581,1750069844029,-460.0,0.00022191,4]
[366112583,1750069844044,-556.44085309,0.00022191,4]
[366112584,1750069844053,-460.0,0.00022191,4]
[366112586,1750069844063,-460.0,0.00022191,4]
[366112588,1750069844072,-242.95446106,0.00022191,4]
[366112590,1750069844083,-384.0664668,0.00022191,4]
[366112592,1750069844092,-460.0,0.00022191,4]
[366112594,1750069844102,-477.97174027,0.00022191,4]
[366112596,1750069844114,-460.0,0.00022191,4]
[366112598,1750069844124,-460.0,0.00022191,4]
[366112600,1750069844133,-460.0,0.00022191,4]
[366112602,1750069844143,-1002.27,0.00022191,4]
[366112604,1750069844152,-351.79190541,0.00022191,4]
[366112606,1750069844162,-460.0,0.00022191,4]
[366112608,1750069844171,-460.0,0.00022191,4]
[366112610,1750069844180,-460.0,0.00022191,4]
[366112612,1750069844190,-460.0,0.00022191,4]
[366112614,1750069844201,-460.0,0.00022191,4]
[366112616,1750069844210,-460.0,0.00022191,4]
[366112618,1750069844220,-1392.3,0.00022191,4]
[366112620,1750069844230,-460.0,0.00022191,4]
[366112622,1750069844241,-460.0,0.00022191,4]
[366112624,1750069844250,-460.0,0.00022191,4]
[366112626,1750069844261,-460.0,0.00022191,4]
[366112628,1750069844271,-460.0,0.00022191,4]
[366112630,1750069844282,-1648.77,0.00022191,4]
[366112632,1750069844292,-460.0,0.00022191,4]
[366112634,1750069844302,-460.0,0.00022191,4]
[366112637,1750069844312,-1163.05,0.00022191,4]
[366112639,1750069844323,-460.0,0.00022191,4]
[366112641,1750069844334,-460.0,0.00022191,4]
[366112643,1750069844344,-460.0,0.00022191,4]
[366112645,1750069844353,-460.0,0.00022191,4]
[366112647,1750069844364,-424.36143042,0.00022191,4]
[366112649,1750069844374,-204.40349047,0.00022191,4]
[366112651,1750069844383,-460.0,0.00022191,4]
[366112662,1750069844486,-573.38,0.00022191,4]
[366112664,1750069844498,-460.0,0.00022191,4]
[366112666,1750069844507,-460.0,0.00022191,4]
[366112668,1750069844517,-685.17,0.00022191,4]
[366112670,1750069844527,-460.0,0.00022191,4]
[366112672,1750069844537,-460.0,0.00022191,4]
[366112674,1750069844547,-460.0,0.00022191,4]
[366112676,1750069844557,-460.0,0.00022191,4]
[366112678,1750069844567,-460.0,0.00022191,4]
[366112680,1750069844576,-460.0,0.00022191,4]
[366112682,1750069844586,-460.0,0.00022191,4]
[366112684,1750069844597,-460.0,0.00022191,4]
[366112686,1750069844606,-460.0,0.00022191,4]
[366112688,1750069844616,-694.47,0.00022191,4]
[366112690,1750069844626,-460.0,0.00022191,4]
[366112692,1750069844635,-460.0,0.00022191,4]
[366112694,1750069844645,-460.0,0.00022191,4]
[366112696,1750069844655,-460.0,0.00022191,4]
[366112698,1750069844665,-460.0,0.00022191,4]
[366112700,1750069844675,-439.48035755,0.00022191,4]
[366112702,1750069844691,-460.0,0.00022191,4]
[366112704,1750069844701,-460.0,0.00022191,4]
[366112706,1750069844712,-460.0,0.00022191,4]
[366112708,1750069844723,-460.0,0.00022191,4]
[366112711,1750069844733,-460.0,0.00022191,4]
[366112713,1750069844743,-460.0,0.00022191,4]
[366112715,1750069844754,-460.0,0.00022191,4]
[366112717,1750069844765,-460.0,0.00022191,4]
[366112719,1750069844774,-460.0,0.00022191,4]
[366112721,1750069844784,-175.27918428,0.00022191,4]
[366112723,1750069844794,-460.0,0.00022191,4]
[366112725,1750069844804,-484.83,0.00022191,4]